Cogmind - Beta 15 @@@ ROGUE MODE // 2025.05.25 @ 00:27:24 Player: Wyvric Result: Destroyed by 5L-XDT(R) with Subdweller Shrapnel Launcher Performance ------------- Evolutions (0) 0 Regions Visited (2) 400 Robots Destroyed (30) 150 Value Destroyed (709) 709 Prototype IDs (2) 40 Alien Tech Used (0) 0 Bonus (0) 0 TOTAL SCORE: 1299 Bonus ------- None Cogmind --------- Core Integrity 0/250 Matter 275/300 Energy 100/100 System Corruption 1% Temperature Cool (6) Movement Treading (480) Ox4 Location -10/Subcaves Parts ------- > --- POWER (1) -------- (None) > --- PROPULSION (2) --- Light Treads > --- UTILITY (2) ------ Huge Storage Unit Seismic Detector > --- WEAPON (2) ------- Grenade Launcher > --- INVENTORY (25) --- Subdweller Power Source Subdweller Power Source Aluminum Leg Aluminum Leg Improved Aluminum Leg Improved Aluminum Leg Improved Aluminum Leg Improved Aluminum Leg Cargo Legs Wheel Wheel Huge Storage Unit Structural Scanner Improved Terrain Scanner Light Armor Plating Light Armor Plating Light Armor Plating Shield Generator Subdweller Beam Cannon Assault Rifle Light Assault Rifle Light Assault Rifle Light Assault Rifle Light Cannon Peak State ------------ > --- POWER ------------ Ion Engine > --- PROPULSION ------- Light Treads Light Treads > --- UTILITY ---------- Huge Storage Unit Light Armor Plating > --- WEAPON ----------- Heavy EM Pulse Gun Heavy EM Pulse Gun > --- INVENTORY -------- Light Ion Engine Light Ion Engine Aluminum Leg Aluminum Leg Improved Aluminum Leg Improved Aluminum Leg Improved Aluminum Leg Improved Aluminum Leg Wheel Wheel Huge Storage Unit Structural Scanner Improved Terrain Scanner Seismic Detector Light Armor Plating Shield Generator Heavy EM Pulse Gun Heavy EM Pulse Gun Assault Rifle Assault Rifle Assault Rifle Light Assault Rifle Light Assault Rifle Light Assault Rifle Light Cannon [Rating: 12] Favorites ----------- Power Ion Engine Engine Ion Engine Propulsion Light Treads Treads Light Treads Utility Huge Storage Unit Device Seismic Detector Storage Huge Storage Unit Protection Light Armor Plating Weapon Assault Rifle Energy Gun EM Pulse Gun Ballistic Gun Assault Rifle Launcher Grenade Launcher Build | -11 -10 -10 ------- Run | Yrd Mat Sub Slots Evolved . | . . . Power . | . . . Propulsion . | . . . Utility . | . . . Weapon . | . . . Parts Attached 23 | 7 9 7 Power 4 | 1 1 2 Engine 4 | 1 1 2 Core . | . . . Reactor . | . . . Propulsion 3 | 2 1 . Treads 3 | 2 1 . Leg . | . . . Wheel . | . . . Hover . | . . . Flight . | . . . Utility 6 | 2 3 1 Device 1 | 1 . . Storage 3 | 1 2 . Processor . | . . . Hackware . | . . . Protection 2 | . 1 1 Artifact . | . . . Weapon 10 | 2 4 4 Energy Gun 6 | . 4 2 Energy Cannon . | . . . Ballistic Gun 3 | 2 . 1 Ballistic Cannon . | . . . Launcher 1 | . . 1 Special Weapon . | . . . Impact Weapon . | . . . Slashing Weapon . | . . . Piercing Weapon . | . . . Special Melee Weapon . | . . . Unidentified Prototypes . | . . . Parts Lost 10 | . 2 8 Power 4 | . 1 3 Propulsion 2 | . 1 1 Utility . | . . . Weapon 4 | . . 4 Highest Loss Streak 3 | . 1 3 To Critical Strikes . | . . . Average Backups 15 | 5 14 22 Power 1 | . 2 1 Propulsion 5 | 2 5 8 Utility 3 | . 3 6 Weapon 4 | 1 3 6 Tool/Special . | . . . Unused Backups 21 | . 1 20 Power 1 | . . 1 Propulsion 9 | . . 9 Utility 5 | . . 5 Weapon 6 | . 1 5 Tool/Special . | . . . Average Slot Usage (%) 99 | . 98 100 Engine 13 | . 13 14 Treads 27 | . 27 28 Device 5 | . 4 8 Storage 14 | . 14 14 Protection 8 | . 9 5 Energy Gun 18 | . 16 24 Ballistic Gun 9 | . 11 4 Peak Build Rating 12 | 8 12 12 Average Rating 8 | 5 8 11 On Entrance 6 | . 8 12 Naked Turns . | . . . Heaviest Build 94 | 13 94 94 Greatest Support 40 | 40 40 40 Greatest Overweight (x) 2 | . 2 2 Average Overweight (x) . | . . 2 Largest Inventory Capacity 25 | 8 25 25 Average Capacity 20 | 7 20 25 Most Carried 25 | 8 25 25 Average Carried 15 | 5 15 22 Final Capacity 25 | 8 25 25 Final Carried 25 | 8 24 25 Class Distribution -------------------- 100% | Mutant Dominant Class ---------------- Mutant | -10/Materials Mutant | -10/Subcaves Resources | -11 -10 -10 ----------- Run | Yrd Mat Sub Matter Collected 781 | 335 321 125 Remotely . | . . . Salvage Created 1111 | 76 712 323 Parts 61 | 10 37 14 Haulers Intercepted 2 | . 2 . Recyclers Shooed 1 | . 1 . Parts Field Recycled . | . . . Retrieved Matter . | . . . Parts Self-Destructed 4 | . . 4 Prevented 4 | . . 4 Kills | -11 -10 -10 ------- Run | Yrd Mat Sub Combat Hostiles Destroyed 21 | . 15 6 Guns 20 | . 15 5 AOE 1 | . . 1 Classes Destroyed 9 | 1 6 2 Worker 1 | . 1 . Tunneler 4 | 4 . . Hauler 2 | . 2 . Recycler 1 | . 1 . Watcher 1 | . 1 . Swarmer 6 | . 6 . Grunt 9 | . 9 . Sentry 1 | . . 1 Subdweller 5 | . . 5 Best Kill Streak 3 | 2 3 2 Combat Bots Only 3 | . 3 2 Max Kills in Single Turn 2 | 1 2 1 Gunslinging . | . . . Exploded 1 | . . 1 Melee . | . . . Uniques/NPCs Destroyed . | . . . Combat | -11 -10 -10 -------- Run | Yrd Mat Sub Hostile Shots Fired 106 | . 68 38 Missed 34 | . 22 12 Hits 72 | . 46 26 Projectile 72 | . 46 26 AOE 3 | . . 3 Critical Strikes 3 | . 2 1 Damage Taken 1289 | . 591 698 Core 255 | . 98 157 Absorbed by Shields . | . . . Core Remaining (%) 100 | 100 . . Volleys Fired 85 | 12 49 24 Largest 2 | 2 2 2 Hottest 90 | 40 80 90 Shots Fired 167 | 24 98 45 Gun 164 | 24 98 42 Cannon . | . . . Launcher 3 | . . 3 Special . | . . . Kinetic 97 | 24 68 5 Thermal . | . . . Explosive 3 | . . 3 Electromagnetic 67 | . 30 37 Robot Hit Streak 21 | 3 9 21 Robot Miss Streak 3 | 3 3 1 Penetration Max . | . . . Secondary Targets . | . . . Shots Hit Robots 111 | 11 60 40 Core Hits 49 | 4 28 17 Critical Kills . | . . . Critical Parts Destroyed . | . . . Critical Strikes 3 | . 1 2 Corrupt 3 | . 1 2 Melee Attacks . | . . . Impact . | . . . Slashing . | . . . Piercing . | . . . Sneak Attacks . | . . . Combat Hostiles . | . . . Follow-up Attacks . | . . . Damage Inflicted 1888 | 134 956 798 Guns 1507 | 134 899 474 Cannons . | . . . Explosions 372 | . 48 324 Melee . | . . . Ramming 9 | . 9 . Kinetic 839 | 134 642 63 Thermal 73 | . 48 25 Explosive 299 | . . 299 Electromagnetic 668 | . 257 411 Impact . | . . . Slashing . | . . . Piercing . | . . . Highest Corruption 1 | . 1 1 Average Corruption 1 | . 1 1 Corruption Purged . | . . . Corruption Blocked . | . . . Effects 12 | . 10 2 Message Errors 5 | . 4 1 Energy Discharges 5 | . 5 . Data Loss (minor) 1 | . . 1 Data Loss (major) 1 | . 1 . Overload Shots . | . . . Overflow Damage . | . . . Projectiles . | . . . Explosions . | . . . Melee . | . . . Knockbacks . | . . . Impact . | . . . Kinetic . | . . . Secondary . | . . . Self-Inflicted Damage 134 | . 124 10 Shots 5 | . 4 1 Rammed 2 | . 2 . Targets Rammed 2 | . 2 . Kicked . | . . . Crushed . | . . . Highest Temperature 144 | . 144 8 Average Temperature 47 | . 50 3 Received Heat Transfer 360 | . 216 144 Siege Activations . | . . . Martial Activations . | . . . Shielding Activations . | . . . Robots Disrupted . | . . . Combat Hostiles . | . . . Robots Corrupted . | . . . Combat Hostiles . | . . . Parts Fried 3 | . 1 2 Impact Corruptions . | . . . Robots Melted . | . . . Combat Hostiles . | . . . Parts Melted 1 | . . 1 Heat Transferred 150 | . 100 50 Parts Sabotaged . | . . . Parts Stolen . | . . . Parts Stripped . | . . . Power Chain Reactions 4 | . 3 1 Alert | -11 -10 -10 ------- Run | Yrd Mat Sub Maximum Alert Level . | . . . Low Security (%) 100 | 100 100 . Level 1 . | . . . Level 2 . | . . . Level 3 . | . . . Level 4 . | . . . Level 5 . | . . . High Security . | . . . Max Security . | . . . Peak Influence 195 | 5 195 . Initial . | . . . Average 87 | 1 97 . Influence Increases 610 | 20 570 20 Destroy 0b10 Robot/C 320 | . 300 20 Destroy 0b10 Robot/NC 45 | 20 25 . Destroy Leader 66 | . 66 . Successful Hack 20 | . 20 . Select Force Hacks 60 | . 60 . Disable Machine 45 | . 45 . Destroy Structure 9 | . 9 . Lose Combat Pursuer 45 | . 45 . Influence Decreases 610 | 20 492 98 Entered New Map 38 | . . 38 Time Decay 532 | 20 472 40 Lost Part 40 | . 20 20 Squads Dispatched 3 | . 3 . Investigation 2 | . 2 . Extermination . | . . . Reinforcement 1 | . 1 . Assault . | . . . Garrison . | . . . Intercept . | . . . Searches Triggered . | . . . Construction Impeded . | . . . Haulers Reinforced . | . . . Active Scanning Responses . | . . . Cargo Convoy Interrupts . | . . . Stealth | -11 -10 -10 --------- Run | Yrd Mat Sub Distress Signals 1 | . 1 . Communications Jammed . | . . . Distress Signals . | . . . Times Spotted 35 | . 25 10 Peak Tracking Total 3 | . 3 3 Tactical Retreats 2 | . 2 . Traps | -11 -10 -10 ------- Run | Yrd Mat Sub Traps Triggered 1 | . 1 . Indirectly . | . . . Trap Hack Attempts . | . . . Triggered . | . . . Disarmed . | . . . Reprogrammed . | . . . Reused . | . . . Traps Extracted . | . . . Installed . | . . . Triggered . | . . . Machines | -11 -10 -10 ---------- Run | Yrd Mat Sub Machines Disabled 3 | . 3 . Max in Single Turn 3 | . 3 . Machines Repaired . | . . . Machines Dismantled . | . . . Machines Sabotaged . | . . . Overloaded Fab Kills . | . . . Hacking | -11 -10 -10 --------- Run | Yrd Mat Sub Machines Accessed 8 | . 8 . Terminals 6 | . 6 . Fabricators . | . . . Repair Stations . | . . . Recycling Units 2 | . 2 . Scanalyzers . | . . . Garrison Access . | . . . Total Hacks 27 | . 27 . Successful 15 | . 15 . Failed 12 | . 12 . Catastrophic 2 | . 2 . Database Lockouts . | . . . Manual 27 | . 27 . Terminals 23 | . 23 . Fabricators . | . . . Repair Stations . | . . . Recycling Units 4 | . 4 . Scanalyzers . | . . . Garrison Access . | . . . Terminal Hacks 6 | . 6 . Part Schematic 1 | . 1 . Robot Schematic 1 | . 1 . Robot Analysis 3 | . 3 . Prototype ID Bank 1 | . 1 . Fabricator Hacks . | . . . Repair Station Hacks . | . . . Recycling Unit Hacks . | . . . Scanalyzer . | . . . Garrison Access Hacks . | . . . Unauthorized Hacks 9 | . 9 . Terminals 7 | . 7 . Botnet 2 | . 2 . Skim 5 | . 5 . Fabricators . | . . . Repair Stations . | . . . Recycling Units 2 | . 2 . Tunnel 2 | . 2 . Scanalyzers . | . . . Garrison Access . | . . . Data Cores Recovered . | . . . Used . | . . . Hacking Detections 6 | . 6 . Full Trace Events . | . . . Feedback Events . | . . . Feedback Blocked . | . . . Robot Schematics Acquired 1 | . 1 . Robots Built . | . . . Authchips . | . . . Time . | . . . Total Robot Build Rating . | . . . Part Schematics Acquired 1 | . 1 . Parts Built . | . . . Authchips . | . . . Time . | . . . Total Part Build Rating . | . . . Parts Repaired . | . . . Time . | . . . Parts Recycled . | . . . Recycled Matter . | . . . Retrieved Matter . | . . . Retrieved Components . | . . . Parts Scanalyzed . | . . . Part Schematics Acquired . | . . . Parts Damaged . | . . . Bothacking | -11 -10 -10 ------------ Run | Yrd Mat Sub Used RIF Installer . | . . . Robots Hacked . | . . . Non-combat . | . . . Combat . | . . . Robot Hacks Applied . | . . . Relay Couplers Released . | . . . Fabnet Peak Effective % . | . . . Robots Rewired . | . . . Allies Hacked . | . . . Hacks Repelled . | . . . Allies | -11 -10 -10 -------- Run | Yrd Mat Sub Total Allies . | . . . Largest Group . | . . . Highest-Rated Group . | . . . Highest-Rated Ally . | . . . Total Orders . | . . . Ally Attacks . | . . . Total Damage . | . . . Kills . | . . . Allies Corrupted . | . . . Allies Melted . | . . . Intel | -11 -10 -10 ------- Run | Yrd Mat Sub Active Infowar (turns) 814 | 17 538 259 Seismic 814 | 17 538 259 Robot Analysis Total 3 | . 3 . Derelict Logs Recovered . | . . . Drone Launches . | . . . Drone Recoveries . | . . . Exploration | -11 -10 -10 ------------- Run | Yrd Mat Sub Turns Passed 2267 | 183 1667 417 Spaces Moved 730 | 85 544 101 Core 7 | 7 . . Treads 723 | 78 544 101 Legs . | . . . Wheels . | . . . Hover . | . . . Flight . | . . . Fastest Speed 50 | 50 160 320 Average Speed 237 | 150 235 320 Slowest Speed 320 | 160 320 320 Overloaded Moves . | . . . Propulsion Burnouts . | . . . Robots Hopped . | . . . Potential Cave-ins . | . . . Cave-ins Triggered . | . . . Exploration Rate (%) 36 | 5 93 11 Regions Visited 2 Branch Regions 1 Pre-discovered Areas 3 | . 3 . Known Exits Taken . | . . . Unknown Exits Taken 2 | 1 1 . Scrap Searched . | . . . Spaces Dug . | . . . Terrain Destroyed 26 | . 6 20 Melee . | . . . Projectile . | . . . AOE 26 | . 6 20 Terrain Rammed . | . . . Walls Destroyed . | . . . Machines Disabled . | . . . Actions | -11 -10 -10 --------- Run | Yrd Mat Sub Total 1093 | 113 832 148 Wait 201 | . 195 6 Move 728 | 84 543 101 Hop . | . . . Pick Up 37 | 10 22 5 Fast Attach 7 | 5 2 . Attach 10 | 2 3 5 Detach . | . . . Swap 16 | . 9 7 Drop 7 | . 7 . Fire 85 | 12 49 24 Melee . | . . . Ram . | . . . Kick . | . . . Crush 2 | . 2 . Escape Stasis . | . . . Rewire . | . . . Trap . | . . . Miscellaneous . | . . . Route ------- -11/Scrapyard -10/Materials (discovered 5 exits: [*Mat x3] / [*Min] / [*Sub]) -10/Subcaves History --------- Turn | Location | Event 4 | -11/Scrapyard | Discovered new exit (range 15) 184 | -11/Scrapyard | Entered Materials 302 | -10/Materials | Build established: Mutant 489 | -10/Materials | Discovered new exit (range 11) 599 | -10/Materials | Discovered new exit (range 11) 1061 | -10/Materials | Discovered new exit (range 16) 1523 | -10/Materials | Discovered new exit (range 15) 1712 | -10/Materials | Learned 4 Recycling zone layouts 1717 | -10/Materials | Discovered new exit (range 8) 1751 | -10/Materials | Learned location of 2 exits from Mines 1778 | -10/Materials | Learned location of 2 exits from Mines 1795 | -10/Materials | Learned location of 1 exit from Storage 1804 | -10/Materials | Learned 2 Storage zone layouts 1805 | -10/Materials | Learned 4 Recycling zone layouts 1806 | -10/Materials | Loaded intel: 4 trap records 1822 | -10/Materials | Loaded intel: 1 repair station location 1846 | -10/Materials | Learned 4 Recycling zone layouts 1851 | -10/Materials | Entered Subcaves 1852 | -10/Subcaves | Approached by a straggling Scientist 2131 | -10/Subcaves | A Subdweller sparked back to life 2131 | -10/Subcaves | A Subdweller sparked back to life 2139 | -10/Subcaves | Core integrity fell below 50% 2170 | -10/Subcaves | Found Prototype Leg 2265 | -10/Subcaves | Core integrity fell below 20% 2268 | -10/Subcaves | Ambushed by Subdweller buried in earth 2268 | -10/Subcaves | Destroyed by 5L-XDT(R) with Subdweller Shrapnel Launcher Last Messages --------------- 02131_ N0-DJ2(R) creaks and sparks as it begins to move. 02140_ Lgt. Ion Engine destroyed. 02143_ Hvy. EM Pulse Gun destroyed. 02145_ 3B-WDT(R) destroyed. 02149_ XQ-UBD(R) affixes Scrap Shield Fragment to Scrap Shield. 02150_ N0-DJ2(R) destroyed. 02154_ XQ-UBD(R) misfires. 02160_ XQ-UBD(R) destroyed. 02170_ Acquired Prototype Leg. 02171_ Acquired 38 matter. 02177_ Acquired 17 matter. 02183_ The unstable cave ceiling collapses. 02183_ Acquired Sub. Power Source. 02197_ Acquired Sub. Beam Cannon. 02217_ Acquired Sub. Power Source. 02266_ Lgt. Ion Engine destroyed. 02268_ Lgt. Treads destroyed. 02268_ Hvy. EM Pulse Gun destroyed. Map ----- +----------------------------------------------------+ | ??????????????????????????????????????????? | | ??????????????????????????????????????????? | | ??????????????????????????????????????????? | | ??????????????????????????????????????????? | | ??????????????????????????????????????????? | | ??????????????????????????????????????????? | | ??????????????????????????????????????????? | | ??????????????????????????????????????????? | | ??????????????????????????????????????????? | | ??????????????????????????????????????????? | | ??????????????????????????????????????????? | | ??????????????????????????????????????????? | | ??????????????????????""??????????????????? | | ??????????????????#### "??????????????????? | | ?????????????????? # " ????????????????? | | ?????????????????? ???????????????? | | ?????????????????? RR"" ???????????????? | | ????????????????## R """????????????????? | | ????????????????# ""????????????????? | | ????????????????# """"" ???????????? | | ?????????????#### """""""" ??????????? | | ?????????????# """ #???????????? | | ?????????????# " #????????????? | | ?????????????# ##???????????? | | ?????????????# #???????????? | | ??????????????#; @ ; #?? ###?????????? | | ??????????????#; ### #?????????? | | ?????????????# ; "#???????????? | | ?????????????# # #????????????? | | ?????????????# ; #??????????????? | | ?????????????#### # #??????????????? | | ???????????????# ### #??????????????? | | ???????????????# #?# # #????????????? | | ???????????????# ## ##???????????? | | ???????????????## # #???????????? | | ????????????????# #### ##???????????? | | ???????????????#### ### ##???????????? | | ??????????????## ##&[ &&! ##??????????? | | ??????????????# ##[%% &% ###????????? | | ???????????????# &= !& #???????? | | ???????????????## " " # #??????? | | ????????????????# # #?????? | | ????????????????# # # & # #?????? | | ????????????????#### #### " #? ?????? | | ??????????????????# ##???" " #??? ????? | | ??????????????????# #???#####?????##???? | | ??????????????????# #???????? ???????? | | ??????????????????## ####????? ???????? | | ??????????????????## #????? ???????? | | ?????????????????## ###?????# #??????? | +----------------------------------------------------+ Best States ------------- Heat Dissipation 25 Energy Generation 10 Energy Capacity 250 Matter Stores 300 Matter Capacity 300 Sight Range 16 Terrain Scan Density 10 Armor Coverage 150 Evasion (%) 40 Recoil Reduction 2 Item Schematics ----------------- Hcp. Storage Unit | -10/Materials | Hacked Robot Schematics ------------------ M-13 Machinist | -10/Materials | Hacked Fabricated ------------ Nothing Repaired ---------- Nothing Alien Tech Used ----------------- None Achievements -------------- None Challenges ------------ None Game ------ Seed FlakFireShell Manual? 0 Play Time 00:17:41 Cumulative 618.9 hours Start 2025.05.25 @ 00:08:56 End 2025.05.25 @ 00:27:24 Sessions 1 Manual Loads 0 Difficulty Rogue Special Mode None Game No. 138 Rogue 138 Adventurer 0 Explorer 0 Win Type - Total 37 Types 10/5/7/1/1/1/8/2/1/1 Lore% 68 Gallery% 83 Achievement% 79 Wizard Run 0 Options --------- Layout 1 ASCII 0 Keyboard 0 Movement Numpad Keybinds 0 Fullscreen 2 Font 24/Smallcaps Map View 50x35 Zoom Use 0% Tactical HUD 1 Map Filters NONE Filters NONE Steam 1 RUN: 9348eed0-4209-423a-981d-22eea0ad5450